Cogmind - Beta 15 @@@ ROGUE MODE // 2025.07.27 @ 23:56:40 Player: bugsniper Result: Destroyed by 49-020(R) with Subdweller Beam Cannon Performance ------------- Evolutions (0) 0 Regions Visited (2) 400 Robots Destroyed (25) 125 Value Destroyed (577) 577 Prototype IDs (2) 40 Alien Tech Used (0) 0 Bonus (0) 0 TOTAL SCORE: 1142 Bonus ------- None Cogmind --------- Core Integrity 0/250 Matter 193/300 Energy 111/125 System Corruption 3% Temperature Cool (9) Movement Core (500) Ox9 Location -10/Subcaves Parts ------- > --- POWER (1) -------- Light Ion Engine > --- PROPULSION (2) --- (None) > --- UTILITY (2) ------ Large Storage Unit > --- WEAPON (2) ------- EM Pulse Gun Subdweller Laser > --- INVENTORY (15) --- Light Ion Engine Subdweller Power Source Light Treads Light Treads Aluminum Leg Aluminum Leg Wheel Compact Wheel Compact Wheel Improved Terrain Scanner Scrap Shield Subdweller Laser Subdweller Machine Gun Peak State ------------ > --- POWER ------------ Ion Engine > --- PROPULSION ------- Aluminum Leg Aluminum Leg > --- UTILITY ---------- Large Storage Unit Improved Terrain Scanner > --- WEAPON ----------- EM Pulse Gun Light Assault Rifle > --- INVENTORY -------- Light Ion Engine Light Ion Engine Light Treads Light Treads Aluminum Leg Aluminum Leg Aluminum Leg Wheel Wheel Compact Wheel Compact Wheel Compact Wheel Light Assault Rifle Light Assault Rifle Light Assault Rifle [Rating: 10] Favorites ----------- Power Ion Engine Engine Ion Engine Propulsion Aluminum Leg Leg Aluminum Leg Utility Large Storage Unit Device ECM Suite Storage Large Storage Unit Protection Light Armor Plating Weapon Grenade Launcher Energy Gun EM Pulse Gun Ballistic Gun Light Assault Rifle Launcher Grenade Launcher Build | -11 -10 -10 ------- Run | Yrd Mat Sub Slots Evolved . | . . . Power . | . . . Propulsion . | . . . Utility . | . . . Weapon . | . . . Parts Attached 14 | . 9 5 Power 2 | . 1 1 Engine 2 | . 1 1 Core . | . . . Reactor . | . . . Propulsion 2 | . 2 . Treads . | . . . Leg 2 | . 2 . Wheel . | . . . Hover . | . . . Flight . | . . . Utility 5 | . 4 1 Device 2 | . 2 . Storage 1 | . 1 . Processor . | . . . Hackware . | . . . Protection 2 | . 1 1 Artifact . | . . . Weapon 5 | . 2 3 Energy Gun 3 | . 1 2 Energy Cannon . | . . . Ballistic Gun . | . . . Ballistic Cannon . | . . . Launcher 2 | . 1 1 Special Weapon . | . . . Impact Weapon . | . . . Slashing Weapon . | . . . Piercing Weapon . | . . . Special Melee Weapon . | . . . Unidentified Prototypes . | . . . Parts Lost 7 | . . 7 Power 1 | . . 1 Propulsion 2 | . . 2 Utility 2 | . . 2 Weapon 2 | . . 2 Highest Loss Streak 4 | . . 4 To Critical Strikes . | . . . Average Backups 13 | . 12 14 Power 1 | . 1 1 Propulsion 7 | . 7 7 Utility 1 | . . 1 Weapon 3 | . 2 3 Tool/Special . | . . . Unused Backups 11 | . 2 9 Power 2 | . 1 1 Propulsion 5 | . 1 4 Utility 1 | . . 1 Weapon 3 | . . 3 Tool/Special . | . . . Average Slot Usage (%) 99 | . 97 99 Engine 14 | . 14 14 Leg 27 | . 28 27 Device 2 | . 6 . Storage 14 | . 14 14 Protection 10 | . 5 14 Energy Gun 11 | . 14 8 Ballistic Gun 3 | . 8 . Launcher 13 | . 5 19 Peak Build Rating 10 | . 10 10 Average Rating 8 | . 7 8 On Entrance 6 | 6 6 8 Naked Turns . | . . . Heaviest Build 35 | 10 33 35 Greatest Support 20 | 20 20 20 Greatest Overweight (x) 1 | . 1 1 Average Overweight (x) . | . . 1 Largest Inventory Capacity 15 | . 15 15 Average Capacity 14 | . 14 15 Most Carried 15 | . 15 15 Average Carried 13 | . 12 14 Final Capacity 15 | 8 15 15 Final Carried 15 | 6 15 14 Class Distribution -------------------- 100% | Mutant Dominant Class ---------------- Mutant | -10/Materials Mutant | -10/Subcaves Resources | -11 -10 -10 ----------- Run | Yrd Mat Sub Matter Collected 734 | 170 208 356 Remotely . | . . . Salvage Created 831 | . 681 150 Parts 39 | . 29 10 Haulers Intercepted 1 | . 1 . Recyclers Shooed 3 | . 3 . Parts Field Recycled . | . . . Retrieved Matter . | . . . Parts Self-Destructed 13 | . . 13 Prevented . | . . . Kills | -11 -10 -10 ------- Run | Yrd Mat Sub Combat Hostiles Destroyed 19 | . 9 10 Guns 6 | . 6 . AOE 13 | . 3 10 Classes Destroyed 6 | . 5 1 Tunneler 1 | . 1 . Hauler 1 | . 1 . Recycler 4 | . 4 . Swarmer 7 | . 3 4 Grunt 7 | . 6 1 Subdweller 5 | . . 5 Best Kill Streak 4 | . 4 4 Combat Bots Only 4 | . 3 4 Max Kills in Single Turn 2 | . 1 2 Gunslinging . | . . . Exploded 2 | . 1 2 Melee . | . . . Uniques/NPCs Destroyed . | . . . Combat | -11 -10 -10 -------- Run | Yrd Mat Sub Hostile Shots Fired 120 | . 45 75 Missed 48 | . 18 30 Hits 72 | . 27 45 Projectile 72 | . 27 45 Damage Taken 1012 | . 335 677 Core 268 | . 158 110 Absorbed by Shields . | . . . Core Remaining (%) 100 | 100 . . Volleys Fired 88 | . 54 34 Largest 2 | . 2 2 Hottest 120 | . 70 120 Shots Fired 151 | . 105 46 Gun 115 | . 104 11 Cannon . | . . . Launcher 36 | . 1 35 Special . | . . . Kinetic 51 | . 51 . Thermal 36 | . 28 8 Explosive 36 | . 1 35 Electromagnetic 28 | . 25 3 Robot Hit Streak 9 | . 9 5 Robot Miss Streak 4 | . 4 4 Penetration Max . | . . . Secondary Targets 1 | . 1 . Max Gunslinging Chain 1 | . 1 . Shots Hit Robots 78 | . 67 11 Core Hits 43 | . 26 17 Critical Kills . | . . . Critical Parts Destroyed . | . . . Critical Strikes . | . . . Melee Attacks . | . . . Impact . | . . . Slashing . | . . . Piercing . | . . . Sneak Attacks . | . . . Combat Hostiles . | . . . Follow-up Attacks . | . . . Damage Inflicted 2266 | . 899 1367 Guns 836 | . 684 152 Cannons . | . . . Explosions 1430 | . 215 1215 Melee . | . . . Ramming . | . . . Kinetic 255 | . 255 . Thermal 467 | . 347 120 Explosive 1257 | . 42 1215 Electromagnetic 287 | . 255 32 Impact . | . . . Slashing . | . . . Piercing . | . . . Highest Corruption 3 | . 3 3 Average Corruption 2 | . 2 3 Corruption Purged . | . . . Corruption Blocked . | . . . Effects 60 | . 24 36 Message Errors 9 | . 4 5 Matter Fused 12 | . 6 6 Heat Flow Errors 13 | . 4 9 Energy Discharges 11 | . 4 7 Parts Rejected 1 | . 1 . Parts Fused 1 | . . 1 Data Loss (minor) 5 | . 2 3 Data Loss (major) 3 | . 2 1 Alerts 4 | . 1 3 Weapon Failures 1 | . . 1 Overload Shots . | . . . Overflow Damage 20 | . . 20 Projectiles . | . . . Explosions 20 | . . 20 Melee . | . . . Knockbacks . | . . . Impact . | . . . Kinetic . | . . . Secondary . | . . . Self-Inflicted Damage 225 | . 59 166 Shots 9 | . 2 7 Rammed . | . . . Targets Rammed . | . . . Kicked . | . . . Crushed . | . . . Highest Temperature 264 | . 250 264 Average Temperature 67 | . 53 106 Received Heat Transfer 306 | . 117 189 Effects 1 | . . 1 Interference 1 | . . 1 Siege Activations . | . . . Martial Activations . | . . . Shielding Activations . | . . . Robots Disrupted . | . . . Combat Hostiles . | . . . Robots Corrupted . | . . . Combat Hostiles . | . . . Parts Fried 1 | . 1 . Impact Corruptions . | . . . Robots Melted . | . . . Combat Hostiles . | . . . Parts Melted . | . . . Heat Transferred 750 | . 600 150 Parts Sabotaged . | . . . Parts Stolen . | . . . Parts Stripped . | . . . Power Chain Reactions 4 | . 4 . Alert | -11 -10 -10 ------- Run | Yrd Mat Sub Maximum Alert Level . | . . . Low Security (%) 100 | . 100 . Level 1 . | . . . Level 2 . | . . . Level 3 . | . . . Level 4 . | . . . Level 5 . | . . . High Security . | . . . Max Security . | . . . Peak Influence 67 | . 67 . Initial . | . . . Average 16 | . 16 . Influence Increases 523 | . 293 230 Destroy 0b10 Robot/C 280 | . 180 100 Destroy 0b10 Robot/NC 30 | . 30 . Destroy Leader 42 | . 32 10 Successful Hack 13 | . 13 . Disable Machine 15 | . 15 . Destroy Structure 23 | . 23 . Lose Combat Pursuer 120 | . . 120 Influence Decreases 440 | . 293 147 Time Decay 390 | . 293 97 Lost Part 50 | . . 50 Squads Dispatched 1 | . 1 . Investigation . | . . . Extermination . | . . . Reinforcement 1 | . 1 . Assault . | . . . Garrison . | . . . Intercept . | . . . Searches Triggered . | . . . Construction Impeded . | . . . Haulers Reinforced . | . . . Active Scanning Responses . | . . . Cargo Convoy Interrupts . | . . . Stealth | -11 -10 -10 --------- Run | Yrd Mat Sub Distress Signals 1 | . 1 . Communications Jammed . | . . . Distress Signals . | . . . Times Spotted 37 | . 20 17 Peak Tracking Total 6 | . 4 6 Tactical Retreats 4 | . 1 3 Traps | -11 -10 -10 ------- Run | Yrd Mat Sub Traps Triggered 2 | . 2 . Indirectly . | . . . Trap Hack Attempts . | . . . Triggered . | . . . Disarmed . | . . . Reprogrammed . | . . . Reused . | . . . Traps Extracted . | . . . Installed . | . . . Triggered . | . . . Machines | -11 -10 -10 ---------- Run | Yrd Mat Sub Machines Disabled 1 | . 1 . Max in Single Turn 1 | . 1 . Machines Repaired . | . . . Machines Dismantled . | . . . Machines Sabotaged . | . . . Overloaded Fab Kills . | . . . Hacking | -11 -10 -10 --------- Run | Yrd Mat Sub Machines Accessed 7 | . 7 . Terminals 7 | . 7 . Fabricators . | . . . Repair Stations . | . . . Recycling Units . | . . . Scanalyzers . | . . . Garrison Access . | . . . Total Hacks 18 | . 18 . Successful 9 | . 9 . Failed 9 | . 9 . Catastrophic . | . . . Database Lockouts . | . . . Manual 5 | . 5 . Terminals 18 | . 18 . Fabricators . | . . . Repair Stations . | . . . Recycling Units . | . . . Scanalyzers . | . . . Garrison Access . | . . . Terminal Hacks 8 | . 8 . Prototype ID Bank 1 | . 1 . Branch Access Points 1 | . 1 . Emergency Access Points 1 | . 1 . Alert Level 2 | . 2 . Locate Traps 2 | . 2 . Zone Layout 1 | . 1 . Fabricator Hacks . | . . . Repair Station Hacks . | . . . Recycling Unit Hacks . | . . . Scanalyzer . | . . . Garrison Access Hacks . | . . . Unauthorized Hacks 1 | . 1 . Terminals 1 | . 1 . Botnet 1 | . 1 . Fabricators . | . . . Repair Stations . | . . . Recycling Units . | . . . Scanalyzers . | . . . Garrison Access . | . . . Data Cores Recovered . | . . . Used . | . . . Hacking Detections 6 | . 6 . Full Trace Events . | . . . Feedback Events . | . . . Feedback Blocked . | . . . Robot Schematics Acquired . | . . . Robots Built . | . . . Authchips . | . . . Time . | . . . Total Robot Build Rating . | . . . Part Schematics Acquired . | . . . Parts Built . | . . . Authchips . | . . . Time . | . . . Total Part Build Rating . | . . . Parts Repaired . | . . . Time . | . . . Parts Recycled . | . . . Recycled Matter . | . . . Retrieved Matter . | . . . Retrieved Components . | . . . Parts Scanalyzed . | . . . Part Schematics Acquired . | . . . Parts Damaged . | . . . Bothacking | -11 -10 -10 ------------ Run | Yrd Mat Sub Used RIF Installer . | . . . Robots Hacked . | . . . Non-combat . | . . . Combat . | . . . Robot Hacks Applied . | . . . Relay Couplers Released . | . . . Fabnet Peak Effective % . | . . . Robots Rewired . | . . . Allies Hacked . | . . . Hacks Repelled . | . . . Allies | -11 -10 -10 -------- Run | Yrd Mat Sub Total Allies . | . . . Largest Group . | . . . Highest-Rated Group . | . . . Highest-Rated Ally . | . . . Total Orders . | . . . Ally Attacks . | . . . Total Damage . | . . . Kills . | . . . Allies Corrupted . | . . . Allies Melted . | . . . Intel | -11 -10 -10 ------- Run | Yrd Mat Sub Active Infowar (turns) 662 | . 662 . Terrain 167 | . 167 . ECM 495 | . 495 . Robot Analysis Total . | . . . Derelict Logs Recovered 1 | . . 1 Drone Launches . | . . . Drone Recoveries . | . . . Exploration | -11 -10 -10 ------------- Run | Yrd Mat Sub Turns Passed 3454 | . 1488 1966 Spaces Moved 1540 | 1 566 973 Core . | . . . Treads . | . . . Legs 1540 | 1 566 973 Wheels . | . . . Hover . | . . . Flight . | . . . Fastest Speed 120 | 120 120 190 Average Speed 188 | 120 187 190 Slowest Speed 190 | 120 190 190 Overloaded Moves . | . . . Propulsion Burnouts . | . . . Robots Hopped . | . . . Potential Cave-ins . | . . . Cave-ins Triggered . | . . . Exploration Rate (%) 44 | 2 83 48 Regions Visited 2 Branch Regions 1 Pre-discovered Areas . | . . . Known Exits Taken . | . . . Unknown Exits Taken 2 | 1 1 . Scrap Searched 2 | . . 2 Spaces Dug 33 | . . 33 Terrain Destroyed 205 | . 19 186 Melee . | . . . Projectile . | . . . AOE 205 | . 19 186 Terrain Rammed . | . . . Walls Destroyed . | . . . Machines Disabled . | . . . Actions | -11 -10 -10 --------- Run | Yrd Mat Sub Total 1947 | . 902 1045 Wait 276 | . 253 23 Move 1538 | . 565 973 Hop . | . . . Pick Up 16 | . 11 5 Fast Attach 6 | . 6 . Attach 4 | . . 4 Detach . | . . . Swap 7 | . 4 3 Drop 12 | . 9 3 Fire 88 | . 54 34 Melee . | . . . Ram . | . . . Kick . | . . . Crush . | . . . Escape Stasis . | . . . Rewire . | . . . Trap . | . . . Miscellaneous . | . . . Route ------- -11/Scrapyard -10/Materials (discovered 6 exits: [*Mat x3] / *Min x2 / [*Sub]) -10/Subcaves (discovered 2 exits: [*Mat] / [*Rec]) History --------- Turn | Location | Event 1 | -11/Scrapyard | Discovered new exit (range 0) 1 | -11/Scrapyard | Entered Materials 13 | -10/Materials | Discovered new exit (range 15) 301 | -10/Materials | Build established: Mutant 525 | -10/Materials | Identified exit to Mines 531 | -10/Materials | Discovered new exit (range 6) 766 | -10/Materials | Discovered new exit (range 16) 784 | -10/Materials | Core integrity fell below 50% 1124 | -10/Materials | Discovered new exit (range 17) 1471 | -10/Materials | Discovered new exit (range 7) 1489 | -10/Materials | Entered Subcaves 1583 | -10/Subcaves | Discovered new exit (range 13) 1791 | -10/Subcaves | A swath of the cavern ceiling suddenly collapsed 2216 | -10/Subcaves | A swath of the cavern ceiling suddenly collapsed 2320 | -10/Subcaves | Learned Materials stockpile data 2823 | -10/Subcaves | Ambushed by Subdwellers from Twisted Machinery 2884 | -10/Subcaves | Lost 3 parts (1p1u1w) 2978 | -10/Subcaves | Core integrity fell below 20% 3004 | -10/Subcaves | Discovered new exit (range 16) 3444 | -10/Subcaves | Ambushed by Subdweller buried in earth 3444 | -10/Subcaves | Ambushed by Subdweller buried in earth 3455 | -10/Subcaves | Destroyed by 49-020(R) with Subdweller Beam Cannon Last Messages --------------- 03280_ Subatomizers dissect the Disposable Heat Sink. 03280_ Acquired Scrap Shield. 03317_ Subatomizers dissect the Disposable Heat Sink. 03329_ System corrupted: Matter fused (-7). 03330_ Subatomizers dissect the Disposable Heat Sink. 03378_ System corrupted: Energy discharge (-31). 03402_ System corrupted: Energy discharge (-43). 03433_ J8HOU3Y SI:93L3Q